Cogmind - Beta 14 @@@ ROGUE MODE // 2025.04.27 @ 05:01:07 Player: Florist Result: Self-destructed Performance ------------- Evolutions (3) 1500 Regions Visited (4) 800 Robots Destroyed (50) 250 Value Destroyed (1749) 1749 Prototype IDs (0) 0 Alien Tech Used (0) 0 Bonus (0) 0 TOTAL SCORE: 4299 Bonus ------- None Cogmind --------- Core Integrity 164/700 Matter 299/300 Energy 100/100 System Corruption 25% Temperature Cool (0) Movement Core (50) Location -7/Factory Parts ------- > --- POWER (1) -------- (None) > --- PROPULSION (3) --- (None) > --- UTILITY (5) ------ Targeting Computer > --- WEAPON (4) ------- Maul > --- INVENTORY (5) ---- Aluminum Leg Improved Heat Sink Weight Redist. System Targeting Computer Peak State ------------ > --- POWER ------------ Light Nuclear Core > --- PROPULSION ------- Titanium Leg Improved Carbon-fiber Leg > --- UTILITY ---------- Large Storage Unit Improved Sensor Array Targeting Computer Targeting Computer Targeting Computer > --- WEAPON ----------- Lightning Gun Lightning Gun > --- INVENTORY -------- Weight Redist. System Targeting Computer Hardened Light Armor Plating Grenade Launcher [Rating: 25] Favorites ----------- Power Light Ion Engine Engine Light Ion Engine Power Core Nuclear Core Propulsion Light Treads Treads Light Treads Leg Titanium Leg Utility Targeting Computer Device Improved Sensor Array Storage Large Storage Unit Processor Targeting Computer Protection Hardened Light Armor Plating Weapon Light Assault Rifle Energy Gun Lightning Gun Ballistic Gun Light Assault Rifle Launcher Grenade Launcher Impact Weapon Maul Build | -11 -10 -9 -8 -7 ------- Run | Yrd Mat Mat Mat Fac Slots Evolved 6 | . . 2 2 2 Power . | . . . . . Propulsion 1 | . . . . 1 Utility 3 | . . . 2 1 Weapon 2 | . . 2 . . Parts Attached 53 | 6 1 11 11 24 Power 7 | 1 . 1 1 4 Engine 4 | 1 . 1 1 1 Core 3 | . . . . 3 Reactor . | . . . . . Propulsion 21 | 2 . 3 6 10 Treads 17 | 2 . 3 6 6 Leg 4 | . . . . 4 Wheel . | . . . . . Hover . | . . . . . Flight . | . . . . . Utility 11 | 1 1 2 3 4 Device 3 | . . 1 1 1 Storage 2 | 1 1 . . . Processor 4 | . . 1 1 2 Hackware . | . . . . . Protection 2 | . . . 1 1 Artifact . | . . . . . Weapon 14 | 2 . 5 1 6 Energy Gun 3 | . . . . 3 Energy Cannon . | . . . . . Ballistic Gun 9 | 2 . 5 1 1 Ballistic Cannon . | . . . . . Launcher 1 | . . . . 1 Special Weapon . | . . . . . Impact Weapon 1 | . . . . 1 Slashing Weapon . | . . . . . Piercing Weapon . | . . . . . Special Melee Weapon . | . . . . . Unidentified Prototypes . | . . . . . Parts Lost 27 | . . 3 . 24 Power 2 | . . . . 2 Propulsion 8 | . . . . 8 Utility 5 | . . . . 5 Weapon 12 | . . 3 . 9 Highest Loss Streak 8 | . . 1 . 8 To Critical Strikes . | . . . . . Average Slot Usage (%) 85 | . 85 84 99 80 Engine 7 | . 14 11 9 2 Core 1 | . . . . 3 Treads 19 | . 28 22 17 14 Leg 1 | . . . . 4 Device 3 | . . . 2 6 Storage 9 | . 14 11 9 6 Processor 11 | . . 1 18 20 Protection 1 | . . . 6 1 Energy Gun 1 | . . . . 3 Ballistic Gun 26 | . 28 39 35 13 Peak Build Rating 25 | 6 7 14 17 25 Average Rating 13 | 4 6 10 16 17 On Entrance 8 | . 6 7 13 17 Naked Turns . | . . . . . Heaviest Build 40 | 11 26 33 40 38 Greatest Support 60 | 40 40 43 43 60 Greatest Overweight (x) 10 | . . . 10 8 Average Overweight (x) . | . . . . . Largest Inventory Capacity 15 | 8 15 15 15 15 Average Capacity 13 | 7 9 15 15 14 Most Carried 15 | 4 8 15 12 10 Average Carried 7 | 2 5 10 8 6 Final Capacity 15 | 8 15 15 15 5 Final Carried 12 | 3 8 12 9 4 Class Distribution -------------------- 52% | Scavenger-Gunner 30% | Mutant 12% | Gunner 3% | Scavenger-Mutant Dominant Class ---------------- Mutant | -10/Materials Scavenger-Gunner | -9/Materials Scavenger-Gunner | -8/Materials Scavenger-Gunner | -7/Factory Resources | -11 -10 -9 -8 -7 ----------- Run | Yrd Mat Mat Mat Fac Matter Collected 1383 | 247 117 340 228 451 Remotely . | . . . . . Salvage Created 1907 | . 139 675 255 838 Parts 113 | . 8 48 12 45 Haulers Intercepted 1 | . . . . 1 Recyclers Shooed . | . . . . . Parts Field Recycled . | . . . . . Retrieved Matter . | . . . . . Parts Self-Destructed . | . . . . . Prevented . | . . . . . Kills | -11 -10 -9 -8 -7 ------- Run | Yrd Mat Mat Mat Fac Combat Hostiles Destroyed 43 | . 5 14 7 17 Guns 35 | . 5 14 7 9 AOE 5 | . . . . 5 Classes Destroyed 11 | . 2 2 . 7 Worker 1 | . . . . 1 Builder 3 | . . . . 3 Hauler 1 | . . . . 1 Recycler 1 | . . . . 1 Watcher 1 | . . 1 . . Swarmer 8 | . 3 . 3 2 Grunt 24 | . 2 8 3 11 Brawler 2 | . . . . 2 Duelist 1 | . . . . 1 Sentry 7 | . . 6 1 . Programmer 1 | . . . . 1 Best Kill Streak 8 | . 2 4 3 8 Combat Bots Only 4 | . 2 3 3 4 Max Kills in Single Turn 6 | . 1 1 1 6 Gunslinging . | . . . . . Exploded 1 | . . . . 1 Melee . | . . . . . Uniques/NPCs Destroyed . | . . . . . Combat | -11 -10 -9 -8 -7 -------- Run | Yrd Mat Mat Mat Fac Hostile Shots Fired 286 | . 39 52 35 160 Missed 68 | . 8 12 14 34 Damage Taken 3697 | . 295 566 272 2564 Core 731 | . 52 83 60 536 Absorbed by Shields . | . . . . . Core Remaining (%) 86 | 100 79 79 89 . Volleys Fired 138 | . 27 36 14 61 Largest 4 | . 2 4 4 4 Hottest 110 | . 40 89 86 110 Shots Fired 369 | . 54 124 56 135 Gun 362 | . 54 124 56 128 Cannon . | . . . . . Launcher 7 | . . . . 7 Special . | . . . . . Kinetic 335 | . 54 124 56 101 Thermal 11 | . . . . 11 Explosive 7 | . . . . 7 Electromagnetic 16 | . . . . 16 Robot Hit Streak 15 | . 11 15 8 14 Robot Miss Streak 4 | . 3 4 3 2 Penetration Max . | . . . . . Secondary Targets 3 | . . 1 . 2 Max Gunslinging Chain 1 | . . 1 . 1 Shots Hit Robots 260 | . 33 87 33 107 Core Hits 109 | . 10 31 17 51 Critical Kills . | . . . . . Critical Parts Destroyed 3 | . . . . 3 Critical Strikes 4 | . . . . 4 Burn 1 | . . . . 1 Smash 3 | . . . . 3 Melee Attacks 6 | . . . . 6 Impact 6 | . . . . 6 Slashing . | . . . . . Piercing . | . . . . . Sneak Attacks . | . . . . . Combat Hostiles . | . . . . . Follow-up Attacks . | . . . . . Damage Inflicted 4205 | . 343 984 371 2507 Guns 2940 | . 343 984 371 1242 Cannons . | . . . . . Explosions 1074 | . . . . 1074 Melee 145 | . . . . 145 Ramming 46 | . . . . 46 Kinetic 2544 | . 343 984 371 846 Thermal 131 | . . . . 131 Explosive 1074 | . . . . 1074 Electromagnetic 265 | . . . . 265 Impact 145 | . . . . 145 Slashing . | . . . . . Piercing . | . . . . . Highest Corruption 25 | . 5 1 . 25 Average Corruption 6 | . 4 1 . 12 Corruption Purged . | . . . . . Corruption Blocked . | . . . . . Effects 13 | . 1 2 . 10 Message Errors 3 | . . . . 3 Matter Fused 1 | . 1 . . . Heat Flow Errors 2 | . . . . 2 Energy Discharges 1 | . . . . 1 Parts Fused 1 | . . . . 1 Data Loss (minor) 4 | . . 2 . 2 Misdirections 1 | . . . . 1 Overload Shots . | . . . . . Overflow Damage 233 | . . . . 233 Projectiles . | . . . . . Explosions 114 | . . . . 114 Melee 119 | . . . . 119 Knockbacks 1 | . . . . 1 Impact 1 | . . . . 1 Kinetic . | . . . . . Secondary . | . . . . . Self-Inflicted Damage 398 | . . . . 398 Shots 8 | . . . . 8 Rammed 8 | . . . . 8 Targets Rammed 25 | . . . . 25 Kicked 17 | . . . . 17 Crushed . | . . . . . Highest Temperature 173 | . 18 126 72 173 Average Temperature 36 | . 9 28 26 48 Received Heat Transfer 966 | . 84 234 81 567 Siege Activations . | . . . . . Robots Corrupted 2 | . . . . 2 Combat Hostiles 2 | . . . . 2 Parts Fried . | . . . . . Impact Corruptions 5 | . . . . 5 Robots Melted 1 | . . . . 1 Combat Hostiles 1 | . . . . 1 Parts Melted . | . . . . . Heat Transferred 370 | . . . . 370 Parts Sabotaged . | . . . . . Parts Stolen . | . . . . . Parts Stripped . | . . . . . Power Chain Reactions . | . . . . . Alert | -11 -10 -9 -8 -7 ------- Run | Yrd Mat Mat Mat Fac Peak Influence 295 | . 180 295 288 271 Initial 61 | . . 5 61 49 Average 99 | . 88 107 129 90 Maximum Alert Level 1 | . . 1 1 1 Low Security (%) 87 | 100 100 84 81 85 Level 1 12 | . . 15 18 14 Level 2 . | . . . . . Level 3 . | . . . . . Level 4 . | . . . . . Level 5 . | . . . . . High Security . | . . . . . Max Security . | . . . . . Squads Dispatched 5 | . . 1 1 3 Investigation . | . . . . . Extermination 1 | . . . . 1 Reinforcement 3 | . . 1 1 1 Assault 1 | . . . . 1 Garrison . | . . . . . Intercept . | . . . . . Searches Triggered . | . . . . . Construction Impeded . | . . . . . Haulers Reinforced . | . . . . . Active Scanning Responses . | . . . . . Cargo Convoy Interrupts 1 | . . . . 1 Stealth | -11 -10 -9 -8 -7 --------- Run | Yrd Mat Mat Mat Fac Distress Signals 4 | . . 3 1 . Communications Jammed . | . . . . . Distress Signals . | . . . . . Times Spotted 63 | . 8 21 12 22 Peak Tracking Total 4 | . 3 3 3 4 Tactical Retreats 4 | . 1 . 2 1 Traps | -11 -10 -9 -8 -7 ------- Run | Yrd Mat Mat Mat Fac Traps Triggered 9 | . 3 1 2 3 Indirectly . | . . . . . Trap Hack Attempts . | . . . . . Triggered . | . . . . . Disarmed . | . . . . . Reprogrammed . | . . . . . Reused . | . . . . . Traps Extracted . | . . . . . Installed . | . . . . . Triggered 1 | . . . . 1 Machines | -11 -10 -9 -8 -7 ---------- Run | Yrd Mat Mat Mat Fac Machines Disabled 5 | . . . . 5 Max in Single Turn 2 | . . . . 2 Garrison Access 1 | . . . . 1 Machines Repaired . | . . . . . Machines Dismantled . | . . . . . Machines Sabotaged . | . . . . . Overloaded Fab Kills . | . . . . . Hacking | -11 -10 -9 -8 -7 --------- Run | Yrd Mat Mat Mat Fac Machines Accessed 1 | . . 1 . . Terminals 1 | . . 1 . . Fabricators . | . . . . . Repair Stations . | . . . . . Recycling Units . | . . . . . Scanalyzers . | . . . . . Garrison Access . | . . . . . Total Hacks 1 | . . 1 . . Successful 1 | . . 1 . . Failed . | . . . . . Catastrophic . | . . . . . Database Lockouts . | . . . . . Manual . | . . . . . Terminals 1 | . . 1 . . Fabricators . | . . . . . Repair Stations . | . . . . . Recycling Units . | . . . . . Scanalyzers . | . . . . . Garrison Access . | . . . . . Terminal Hacks 1 | . . 1 . . Alert Level 1 | . . 1 . . Fabricator Hacks . | . . . . . Repair Station Hacks . | . . . . . Recycling Unit Hacks . | . . . . . Scanalyzer . | . . . . . Garrison Access Hacks . | . . . . . Unauthorized Hacks . | . . . . . Terminals . | . . . . . Fabricators . | . . . . . Repair Stations . | . . . . . Recycling Units . | . . . . . Scanalyzers . | . . . . . Garrison Access . | . . . . . Data Cores Recovered . | . . . . . Used . | . . . . . Hacking Detections . | . . . . . Full Trace Events . | . . . . . Feedback Events . | . . . . . Feedback Blocked . | . . . . . Robot Schematics Acquired . | . . . . . Robots Built . | . . . . . Authchips . | . . . . . Time . | . . . . . Total Robot Build Rating . | . . . . . Part Schematics Acquired . | . . . . . Parts Built . | . . . . . Authchips . | . . . . . Time . | . . . . . Total Part Build Rating . | . . . . . Parts Repaired . | . . . . . Time . | . . . . . Parts Recycled . | . . . . . Recycled Matter . | . . . . . Retrieved Matter . | . . . . . Retrieved Components . | . . . . . Parts Scanalyzed . | . . . . . Part Schematics Acquired . | . . . . . Parts Damaged . | . . . . . Bothacking | -11 -10 -9 -8 -7 ------------ Run | Yrd Mat Mat Mat Fac Used RIF Installer . | . . . . . Robots Hacked . | . . . . . Non-combat . | . . . . . Combat . | . . . . . Robot Hacks Applied . | . . . . . Relay Couplers Released 1 | . . . . 1 Machine Destruction 1 | . . . . 1 Fabnet Peak Effective % . | . . . . . Robots Rewired . | . . . . . Allies Hacked . | . . . . . Hacks Repelled . | . . . . . Allies | -11 -10 -9 -8 -7 -------- Run | Yrd Mat Mat Mat Fac Total Allies . | . . . . . Largest Group . | . . . . . Highest-Rated Group . | . . . . . Highest-Rated Ally . | . . . . . Total Orders . | . . . . . Ally Attacks . | . . . . . Total Damage . | . . . . . Kills . | . . . . . Allies Corrupted . | . . . . . Allies Melted . | . . . . . Intel | -11 -10 -9 -8 -7 ------- Run | Yrd Mat Mat Mat Fac Robot Analysis Total . | . . . . . Derelict Logs Recovered . | . . . . . Drone Launches . | . . . . . Drone Recoveries . | . . . . . Exploration | -11 -10 -9 -8 -7 ------------- Run | Yrd Mat Mat Mat Fac Turns Passed 3283 | 66 487 926 510 1294 Spaces Moved 1559 | 38 225 429 226 641 Core 34 | 8 . . 2 24 Treads 1366 | 30 225 429 224 458 Legs 159 | . . . . 159 Wheels . | . . . . . Hover . | . . . . . Flight . | . . . . . Fastest Speed 50 | 50 160 160 160 50 Average Speed 157 | 136 160 160 163 154 Slowest Speed 550 | 160 160 160 550 450 Overloaded Moves . | . . . . . Propulsion Burnouts . | . . . . . Robots Hopped . | . . . . . Cave-ins Triggered . | . . . . . Exploration Rate (%) 24 | 4 39 45 20 14 Regions Visited 4 Branch Regions . Pre-discovered Areas . | . . . . . Known Exits Taken . | . . . . . Unknown Exits Taken 4 | 1 1 1 1 . Scrap Searched . | . . . . . Spaces Dug . | . . . . . Terrain Destroyed 73 | . . . . 73 Melee . | . . . . . Projectile . | . . . . . AOE 73 | . . . . 73 Terrain Rammed . | . . . . . Walls Destroyed . | . . . . . Machines Disabled . | . . . . . Actions | -11 -10 -9 -8 -7 --------- Run | Yrd Mat Mat Mat Fac Total 2107 | 52 305 598 337 815 Wait 248 | . 44 98 75 31 Move 1555 | 37 224 428 225 641 Hop . | . . . . . Pick Up 60 | 9 7 17 7 20 Fast Attach . | . . . . . Attach 43 | 6 1 8 5 23 Detach 1 | . . 1 . . Swap 10 | . . 3 6 1 Drop 21 | . 2 7 5 7 Fire 138 | . 27 36 14 61 Melee 6 | . . . . 6 Ram 8 | . . . . 8 Kick 17 | . . . . 17 Crush . | . . . . . Escape Stasis . | . . . . . Rewire . | . . . . . Trap . | . . . . . Miscellaneous . | . . . . . Route ------- -11/Scrapyard -10/Materials -9/Materials (discovered 2 exits: [*Mat] / [*Min]) -8/Materials (discovered 2 exits: *Fac / [*Sto]) -7/Factory History --------- Turn | Location | Event 7 | -11/Scrapyard | Discovered new exit (range 16) 67 | -11/Scrapyard | Entered Materials 315 | -10/Materials | Build established: Mutant 524 | -10/Materials | Discovered new exit (range 15) 554 | -10/Materials | Entered another Materials area 554 | -9/Materials | Evolved 2 slots: Weapon x2 844 | -9/Materials | Build established: Gunner 1095 | -9/Materials | Discovered new exit (range 7) 1247 | -9/Materials | Build established: Scavenger-Gunner 1290 | -9/Materials | Discovered new exit (range 8) 1480 | -9/Materials | Entered another Materials area 1480 | -8/Materials | Evolved 2 slots: Utility x2 1634 | -8/Materials | Discovered new exit (range 16) 1925 | -8/Materials | Discovered new exit (range 15) 1990 | -8/Materials | Entered Factory 1990 | -7/Factory | Evolved 2 slots: Propulsion x1, Utility x1 2441 | -7/Factory | Lost 3 parts (1n2w) 2877 | -7/Factory | Lost 6 parts (1p3n2w) 3026 | -7/Factory | Lost 3 parts (1u2w) 3122 | -7/Factory | System corruption reached 10% 3132 | -7/Factory | Build established: Mutant 3152 | -7/Factory | Lost 3 parts (1n1u1w) 3234 | -7/Factory | Core integrity fell below 50% 3249 | -7/Factory | Lost 8 parts (1p3n3u1w) 3275 | -7/Factory | Cargo convoy interrupted 3284 | -7/Factory | Self-destructed Last Messages --------------- Fabricator disabled. M-28 Smith repairs P-60 Hacker. Dropped Lrg. Storage Unit. Acquired Maul. P-60 Hacker suffers critical hit (Smash). Destroyed Target Analyzer. P-60 Hacker system corrupted by crushing effect. ALERT: Cargo convoy interrupted, initiating access lockdown. P-60 Hacker suffers critical hit (Smash). Destroyed Imp. Heat Sink. Destroyed Gravmag System. P-60 Hacker system corrupted by crushing effect. K9LCK/M0/THT%XHYQ1AJ P-60 Hacker suffers critical hit (Smash). Destroyed Gravmag System. Destroyed Shock Rifle. P-60 Hacker system corrupted by crushing effect. P-60 Hacker knocked back. P-60 Hacker system terminally corrupted. Acquired 9 matter. Map ----- +----------------------------------------------------+ | ??????????????????????????????????????????????? | | ??????????????????????????????????????????????? | | ??????????????????????????????????????????????? | | ??????????????????????????????????????????????? | | ??????????????????????????????????????????????? | | ??????????????????????????????????????????????? | | ??????????????????????????????????????????????? | | ??????????????????????????????????????????????? | | ??????????????????????????????????????????????? | | ??????????????????????????????????????????????? | | ??????????????????????????????????????????????? | | ??????????????????????????????????????????????? | | ??????????????????????????????????????????????? | | ??????????????????????????????????????????????? | | ??????????????????????????????????????????????? | | ??????????????????????????????????????????????? | | ??????????????????????????????????????????????? | | ???????????????????????###########????????????? | | ???????????????????????# """"""" #????????????? | | ???????????????????????# """"""" #????????????? | | ???????????????????????# """"""" #????????????? | | ???????????????????????# """"""" #????????????? | | ???????????????????????# #????????????? | | ???????????????????????# ! ! = #?????######## | | ??????????????????###### #?????# ! # | | ??????????????????# # @ #?????#! # | | ??????????????????# "" ###m#######?????# # | | ??????????????????# " # ########### """" # | | ??????????????????#%"F # # """" # | | ??????????????????#%!"%+ # """" # | | ??????????????????#%%%%# # """" # | | ??????????????????#%%%%# ####### # # | | ??????????????????# % %### ######### # """" # | | ??????????????????#! #?# # + """" # | | ????? ??????????######?# # " " " % """" # | | ? ? ?????????????????# # " " " * """" # | | ?? ?????????????????# # " " " # | | ?? ???????????????#?# # " " " # ####### | | ??# ??????????????? ? # " " " # * # | | ??# #?????????????? ? # " " " # | | ??# #?????????????? ? # " " " # | | ??# ##############? ? ? " " " # # # | | ??# #* ## #?#? " " " # # # | | ??# # """"""""" ## #??? # # # | | ??# # ## #??#######?# + # | | ??# # // ## #??????????# # # | | ??# # // ## #??????????## ## # | | ??# # ! ! ## #?#######???# ## # | | ??+ + ## ### ###?# ## # | | ??# # """"""""" ## # # # ##?# ## # | +----------------------------------------------------+ Best States ------------- Heat Dissipation 34 Energy Generation 14 Energy Capacity 275 Matter Stores 300 Matter Capacity 300 Sight Range 16 Robot Scan Range 15 Terrain Scan Density 10 Additional Mass Support 6 Armor Coverage 150 Resistance: EX 25 Evasion (%) 55 Targeting Accuracy 15 Recoil Reduction 3 Item Schematics ----------------- None Robot Schematics ------------------ None Fabricated ------------ Nothing Alien Tech Used ----------------- None Achievements -------------- None Challenges ------------ None Game ------ Seed NuclearMassDoomcannon Manual? 0 Play Time 00:21:00 Cumulative 52.8 hours Start 2025.04.26 @ 09:22:35 End 2025.04.27 @ 05:01:07 Sessions 3 Manual Loads 0 Difficulty Rogue Special Mode None Game No. 65 Rogue 65 Adventurer 0 Explorer 0 Win Type - Total 0 Types 0/0/0/0/0/0/0/0/0 Lore% 13 Gallery% 41 Achievement% 37 Wizard Run 0 Options --------- Layout 1 ASCII 0 Keyboard 0 Movement Mouse Keybinds 0 Fullscreen 1 Font 32/SmallcapsGlow Map View 77x35 Zoom Use 0% Tactical HUD 0 Map Filters NONE Filters NONE Steam 1 RUN: 81627edb-1783-4069-b70f-ebd7e9de006f